Cogmind - Beta 11.1 @@@ ROGUE MODE // 2022.07.03 @ 00:04:19 Player: tkc Result: Self-destructed Performance ------------- Evolutions (2) 1000 Regions Visited (4) 800 Robots Destroyed (36) 180 Value Destroyed (778) 778 Prototype IDs (0) 0 Alien Tech Used (0) 0 Bonus (0) 0 TOTAL SCORE: 2758 Bonus ------- None Cogmind --------- Core Integrity 441/550 Matter 262/300 Energy 18/100 System Corruption 0% Temperature Cool (0) Movement Treading (160) Location -8/Materials Parts ------- > --- POWER (1) -------- (None) > --- PROPULSION (4) --- Light Treads > --- UTILITY (4) ------ Heat Sink Medium Storage Unit Target Analyzer > --- WEAPON (2) ------- Particle Gun > --- INVENTORY (10) --- Large Storage Unit Compact Battery (200) Medium Matter Pod (100) Particle Gun Minigun Improved Light Cannon EMP Blaster Mace Peak State ------------ > --- POWER ------------ Improved Ion Engine > --- PROPULSION ------- Improved Treads Aluminum Leg Aluminum Leg > --- UTILITY ---------- Heat Sink Medium Storage Unit Target Analyzer > --- WEAPON ----------- Minigun Minigun > --- INVENTORY -------- Large Storage Unit Compact Battery Medium Matter Pod Target Analyzer Heavy EM Pulse Gun Spread Laser Improved Light Cannon Grenade Launcher [Rating: 18] Favorites ----------- Power Improved Ion Engine Engine Improved Ion Engine Propulsion Light Treads Treads Light Treads Leg Aluminum Leg Wheel Compact Wheel Utility Medium Storage Unit Device Heat Sink Storage Medium Storage Unit Processor Target Analyzer Protection Light Armor Plating Weapon Light Assault Rifle Energy Gun EM Pulse Gun Ballistic Gun Light Assault Rifle Ballistic Cannon Improved Light Cannon Launcher Grenade Launcher Impact Weapon Mace Build | -11 -10 -10 -9 -8 ------- Run | Scr Mat Min Mat Mat Slots Evolved 4 | . . . 2 2 Power . | . . . . . Propulsion 2 | . . . 1 1 Utility 2 | . . . 1 1 Weapon . | . . . . . Parts Attached 56 | 9 7 4 31 5 Power 6 | 2 1 . 3 . Engine 6 | 2 1 . 3 . Core . | . . . . . Reactor . | . . . . . Propulsion 17 | 3 1 1 11 1 Treads 7 | 1 1 . 4 1 Leg 5 | . . . 5 . Wheel 5 | 2 . 1 2 . Hover . | . . . . . Flight . | . . . . . Utility 10 | 2 2 . 5 1 Device 2 | . . . 2 . Storage 4 | 2 1 . 1 . Processor 1 | . . . 1 . Hackware . | . . . . . Protection 3 | . 1 . 1 1 Artifact . | . . . . . Weapon 23 | 2 3 3 12 3 Energy Gun 7 | 1 1 1 3 1 Energy Cannon . | . . . . . Ballistic Gun 7 | 1 . 1 5 . Ballistic Cannon 4 | . 2 . 2 . Launcher 4 | . . 1 1 2 Special Weapon . | . . . . . Impact Weapon 1 | . . . 1 . Slashing Weapon . | . . . . . Piercing Weapon . | . . . . . Special Melee Weapon . | . . . . . Unidentified Prototypes . | . . . . . Corrupted Parts 1 | . . . 1 . System Corruption 2 | . . . 2 . Parts Lost 23 | . . 4 12 7 Power 2 | . . 1 . 1 Propulsion 11 | . . 2 6 3 Utility 4 | . . 1 2 1 Weapon 6 | . . . 4 2 Highest Loss Streak 5 | . . 3 5 5 To Critical Strikes . | . . . . . Average Slot Usage (%) 91 | . 99 93 88 79 Engine 11 | . 14 14 10 6 Treads 14 | . 14 14 11 25 Leg 6 | . . . 13 . Wheel 7 | . 14 10 3 . Device 3 | . . . 4 9 Storage 13 | . 19 14 11 9 Processor 5 | . . . 9 9 Protection 4 | . 7 11 1 4 Energy Gun 9 | . 13 8 7 8 Ballistic Gun 9 | . 9 14 9 7 Ballistic Cannon 3 | . 5 2 3 . Naked Turns . | . . . . . Heaviest Build 30 | 16 28 25 30 29 Greatest Support 60 | 26 16 23 60 60 Greatest Overweight (x) 7 | 1 1 1 7 . Average Overweight (x) . | . . . . . Largest Inventory Capacity 15 | 8 10 10 15 10 Average Capacity 9 | 7 8 10 10 10 Most Carried 10 | 8 10 10 10 10 Average Carried 8 | 4 8 9 8 9 Final Capacity 10 | 8 10 10 10 10 Final Carried 10 | 8 10 9 9 8 Class Distribution -------------------- 100% | Mutant Dominant Class ---------------- Mutant | -10/Materials Mutant | -10/Mines Mutant | -9/Materials Mutant | -8/Materials Resources | -11 -10 -10 -9 -8 ----------- Run | Scr Mat Min Mat Mat Matter Collected 1100 | 238 255 10 567 30 Remotely . | . . . . . Salvage Created 1100 | 72 167 19 775 67 Parts 78 | 5 13 3 48 9 Haulers Intercepted . | . . . . . Recyclers Shooed 5 | . . 2 3 . Parts Field Recycled . | . . . . . Retrieved Matter . | . . . . . Parts Self-Destructed . | . . . . . Prevented . | . . . . . Kills | -11 -10 -10 -9 -8 ------- Run | Scr Mat Min Mat Mat Combat Hostiles Destroyed 23 | . 3 3 14 3 Guns 16 | . 3 1 9 3 Cannons 4 | . . . 4 . AOE 3 | . . 2 1 . Classes Destroyed 8 | 1 3 1 3 . Worker 1 | . 1 . . . Builder 4 | . . . 4 . Tunneler 2 | . . . 1 1 Recycler 4 | 1 . . 3 . Watcher 2 | . 1 . 1 . Swarmer 10 | . . 3 4 3 Grunt 8 | . 3 . 5 . Sentry 5 | . . . 5 . Best Kill Streak 4 | 1 2 3 4 4 Combat Bots Only 4 | . 1 3 4 3 Max Kills in Single Turn 2 | 1 1 1 2 1 Gunslinging . | . . . . . Exploded 1 | . . 1 1 . Melee . | . . . . . Uniques/NPCs Destroyed . | . . . . . Combat | -11 -10 -10 -9 -8 -------- Run | Scr Mat Min Mat Mat Damage Taken 2849 | . 178 616 1070 985 Core 312 | . 30 81 92 109 Absorbed by Shields . | . . . . . Core Remaining (%) 77 | 100 . 55 77 . Volleys Fired 102 | 6 18 14 50 14 Largest 2 | 2 2 2 2 2 Hottest 110 | 60 79 85 110 98 Shots Fired 184 | 12 36 22 93 21 Gun 151 | 12 33 15 71 20 Cannon 25 | . 3 3 19 . Launcher 8 | . . 4 3 1 Special . | . . . . . Kinetic 101 | 6 18 17 53 7 Thermal 14 | . . 1 6 7 Explosive 7 | . . 4 3 . Electromagnetic 62 | 6 18 . 31 7 Robot Hit Streak 13 | 2 4 3 13 5 Robot Miss Streak 5 | 2 3 4 5 2 Penetration Max . | . . . . . Secondary Targets 1 | . . . 1 . Max Gunslinging Chain 1 | . . . 1 . Shots Hit Robots 110 | 6 16 9 64 15 Core Hits 50 | 2 7 3 32 6 Critical Kills 2 | . 1 . . 1 Critical Parts Destroyed 1 | . . . 1 . Critical Strikes 9 | . 1 . 7 1 Destroy 3 | . 1 . 1 1 Blast 2 | . . . 2 . Corrupt 4 | . . . 4 . Melee Attacks . | . . . . . Impact . | . . . . . Slashing . | . . . . . Piercing . | . . . . . Sneak Attacks . | . . . . . Combat Hostiles . | . . . . . Follow-up Attacks . | . . . . . Damage Inflicted 2146 | 61 235 246 1316 288 Guns 1267 | 61 177 48 776 205 Cannons 390 | . 58 19 313 . Explosions 489 | . . 179 227 83 Melee . | . . . . . Ramming . | . . . . . Kinetic 947 | 33 101 67 691 55 Thermal 308 | . . . 186 122 Explosive 288 | . . 179 109 . Electromagnetic 603 | 28 134 . 330 111 Impact . | . . . . . Slashing . | . . . . . Piercing . | . . . . . Highest Corruption 2 | . . . 2 . Average Corruption 2 | . . . 2 . Corruption Purged . | . . . . . Corruption Blocked . | . . . . . Effects 5 | . . . 5 . Matter Fused 1 | . . . 1 . Heat Flow Errors 1 | . . . 1 . Energy Discharges 1 | . . . 1 . Data Loss (minor) 1 | . . . 1 . Alerts 1 | . . . 1 . Overload Shots . | . . . . . Overflow Damage 137 | . . 53 64 20 Projectiles . | . . . . . Explosions 137 | . . 53 64 20 Melee . | . . . . . Knockbacks 2 | . . 1 1 . Impact . | . . . . . Kinetic 2 | . . 1 1 . Secondary . | . . . . . Self-Inflicted Damage 345 | . . 58 234 53 Shots 9 | . . 2 5 2 Rammed . | . . . . . Targets Rammed . | . . . . . Kicked . | . . . . . Crushed . | . . . . . Highest Temperature 459 | 40 90 46 459 22 Average Temperature 59 | 18 27 16 84 9 Received Heat Transfer 402 | . 102 . 300 . Effects 1 | . . . 1 . Interference 1 | . . . 1 . Siege Activations . | . . . . . Robots Corrupted . | . . . . . Combat Hostiles . | . . . . . Parts Fried 2 | . . . 2 . Impact Corruptions . | . . . . . Robots Melted . | . . . . . Combat Hostiles . | . . . . . Parts Melted . | . . . . . Heat Transferred 465 | . . . 230 235 Parts Sabotaged . | . . . . . Parts Stolen . | . . . . . Parts Stripped . | . . . . . Power Chain Reactions 3 | . . . 2 1 Missiles Intercepted . | . . . . . Alert | -11 -10 -10 -9 -8 ------- Run | Scr Mat Min Mat Mat Peak Influence 386 | 5 178 166 386 243 Initial 134 | . 3 19 52 134 Average 130 | 2 60 130 179 169 Maximum Alert Level 1 | . . . 1 1 Low Security (%) 73 | 100 100 100 51 65 Level 1 26 | . . . 48 34 Level 2 . | . . . . . Level 3 . | . . . . . Level 4 . | . . . . . Level 5 . | . . . . . High Security . | . . . . . Max Security . | . . . . . Squads Dispatched 6 | . 2 . 3 1 Investigation 4 | . 1 . 2 1 Extermination . | . . . . . Reinforcement 2 | . 1 . 1 . Assault . | . . . . . Garrison . | . . . . . Intercept . | . . . . . Searches Triggered . | . . . . . Construction Impeded 1 | . . . 1 . Haulers Reinforced . | . . . . . Active Scanning Responses . | . . . . . Cargo Convoy Interrupts . | . . . . . Stealth | -11 -10 -10 -9 -8 --------- Run | Scr Mat Min Mat Mat Distress Signals 2 | . 2 . . . Communications Jammed . | . . . . . Distress Signals . | . . . . . Times Spotted 42 | . 11 5 20 6 Peak Tracking Total 7 | . 4 3 7 6 Tactical Retreats 1 | . . . . 1 Traps | -11 -10 -10 -9 -8 ------- Run | Scr Mat Min Mat Mat Traps Triggered 4 | . 1 . 3 . Indirectly . | . . . . . Trap Hack Attempts . | . . . . . Triggered . | . . . . . Disarmed . | . . . . . Reprogrammed . | . . . . . Reused . | . . . . . Traps Extracted . | . . . . . Installed . | . . . . . Triggered . | . . . . . Machines | -11 -10 -10 -9 -8 ---------- Run | Scr Mat Min Mat Mat Machines Disabled 9 | . 1 . 6 2 Max in Single Turn 4 | . 1 . 4 1 Machines Sabotaged . | . . . . . Garrisons Compromised . | . . . . . Overloaded Fab Kills . | . . . . . Hacking | -11 -10 -10 -9 -8 --------- Run | Scr Mat Min Mat Mat Machines Accessed 12 | . 7 . 3 2 Terminals 12 | . 7 . 3 2 Fabricators . | . . . . . Repair Stations . | . . . . . Recycling Units . | . . . . . Scanalyzers . | . . . . . Garrison Access . | . . . . . Total Hacks 29 | . 16 . 8 5 Successful 9 | . 5 . 3 1 Failed 20 | . 11 . 5 4 Catastrophic 2 | . 1 . 1 . Database Lockouts . | . . . . . Manual 26 | . 15 . 8 3 Terminals 29 | . 16 . 8 5 Fabricators . | . . . . . Repair Stations . | . . . . . Recycling Units . | . . . . . Scanalyzers . | . . . . . Garrison Access . | . . . . . Terminal Hacks 4 | . 2 . 1 1 Record 1 | . . . . 1 Terminal Index 2 | . 1 . 1 . Zone Layout 1 | . 1 . . . Fabricator Hacks . | . . . . . Repair Station Hacks . | . . . . . Recycling Unit Hacks . | . . . . . Scanalyzer . | . . . . . Garrison Access Hacks . | . . . . . Unauthorized Hacks 5 | . 3 . 2 . Terminals 5 | . 3 . 2 . Assimilate 2 | . 1 . 1 . Botnet 3 | . 2 . 1 . Fabricators . | . . . . . Repair Stations . | . . . . . Recycling Units . | . . . . . Scanalyzers . | . . . . . Garrison Access . | . . . . . Data Cores Recovered . | . . . . . Used . | . . . . . Hacking Detections 11 | . 6 . 3 2 Full Trace Events 2 | . 1 . . 1 Feedback Events . | . . . . . Feedback Blocked . | . . . . . Robot Schematics Acquired . | . . . . . Robots Built . | . . . . . Authchips . | . . . . . Time . | . . . . . Total Robot Build Rating . | . . . . . Part Schematics Acquired . | . . . . . Parts Built . | . . . . . Authchips . | . . . . . Time . | . . . . . Total Part Build Rating . | . . . . . Parts Repaired . | . . . . . Time . | . . . . . Parts Recycled . | . . . . . Recycled Matter . | . . . . . Retrieved Matter . | . . . . . Retrieved Components . | . . . . . Parts Scanalyzed . | . . . . . Part Schematics Acquired . | . . . . . Parts Damaged . | . . . . . Bothacking | -11 -10 -10 -9 -8 ------------ Run | Scr Mat Min Mat Mat Used RIF Installer . | . . . . . Robots Hacked . | . . . . . Non-combat . | . . . . . Combat . | . . . . . Robot Hacks Applied . | . . . . . Relay Couplers Released . | . . . . . Fabnet Peak Effective % . | . . . . . Robots Rewired . | . . . . . Allies Hacked . | . . . . . Hacks Repelled . | . . . . . Allies | -11 -10 -10 -9 -8 -------- Run | Scr Mat Min Mat Mat Total Allies . | . . . . . Largest Group . | . . . . . Highest-Rated Group . | . . . . . Highest-Rated Ally . | . . . . . Total Orders . | . . . . . Ally Attacks . | . . . . . Total Damage . | . . . . . Kills . | . . . . . Allies Corrupted . | . . . . . Allies Melted . | . . . . . Intel | -11 -10 -10 -9 -8 ------- Run | Scr Mat Min Mat Mat Robot Analysis Total . | . . . . . Derelict Logs Recovered . | . . . . . Drone Launches . | . . . . . Drone Recoveries . | . . . . . Exploration | -11 -10 -10 -9 -8 ------------- Run | Scr Mat Min Mat Mat Turns Passed 1876 | 80 591 123 892 190 Spaces Moved 1052 | 44 469 69 386 84 Core 7 | 5 . . 2 . Treads 198 | . . 14 100 84 Legs 159 | . . . 159 . Wheels 688 | 39 469 55 125 . Hover . | . . . . . Flight . | . . . . . Fastest Speed 50 | 50 100 115 110 160 Average Speed 130 | 93 105 124 158 160 Slowest Speed 400 | 100 115 160 400 160 Overloaded Moves . | . . . . . Propulsion Burnouts . | . . . . . Robots Hopped . | . . . . . Cave-ins Triggered . | . . . . . Exploration Rate (%) 25 | 3 64 13 40 8 Regions Visited 4 Branch Regions 1 Pre-discovered Areas . | . . . . . Known Exits Taken . | . . . . . Unknown Exits Taken 4 | 1 1 1 1 . Scrap Searched . | . . . . . Spaces Dug 1 | . . . 1 . Terrain Destroyed 95 | . . 32 60 3 Melee . | . . . . . Projectile 2 | . . . 2 . AOE 93 | . . 32 58 3 Terrain Rammed . | . . . . . Walls Destroyed . | . . . . . Machines Disabled . | . . . . . Actions | -11 -10 -10 -9 -8 --------- Run | Scr Mat Min Mat Mat Total 1378 | 68 535 86 570 119 Wait 126 | . 23 . 89 14 Move 1048 | 43 468 68 385 84 Hop . | . . . . . Pick Up 28 | 9 7 . 11 1 Fast Attach 25 | 7 4 . 13 1 Attach 14 | . . 1 10 3 Detach 2 | . . . 1 1 Swap 17 | 2 3 3 8 1 Drop 16 | 1 12 . 3 . Fire 102 | 6 18 14 50 14 Melee . | . . . . . Ram . | . . . . . Kick . | . . . . . Crush . | . . . . . Escape Stasis . | . . . . . Rewire . | . . . . . Trap . | . . . . . Miscellaneous . | . . . . . Route ------- -11/Scrapyard -10/Materials (discovered 3 exits: *Mat x2 / [*Min]) -10/Mines -9/Materials -8/Materials History --------- Turn | Location | Event 14 | -11/Scrapyard | Discovered new exit (range 16) 81 | -11/Scrapyard | Entered Materials 306 | -10/Materials | Build established: Mutant 351 | -10/Materials | Discovered new exit (range 5) 446 | -10/Materials | Discovered new exit (range 14) 593 | -10/Materials | Discovered new exit (range 12) 672 | -10/Materials | Entered Mines 725 | -10/Mines | Assembled infested the area 730 | -10/Mines | Assisted by a Guerilla fighting off Assembled 790 | -10/Mines | Discovered new exit (range 4) 795 | -10/Mines | Entered Materials 795 | -9/Materials | Evolved 2 slots: Propulsion x1, Utility x1 824 | -9/Materials | Lost 3 parts (1p1n1u) 1138 | -9/Materials | Lost 3 parts (2n1u) 1420 | -9/Materials | Lost 5 parts (3n2w) 1661 | -9/Materials | Discovered new exit (range 16) 1687 | -9/Materials | Entered another Materials area 1687 | -8/Materials | Evolved 2 slots: Propulsion x1, Utility x1 1877 | -8/Materials | Self-destructed Last Messages --------------- 01841_ Slug penetrates Wall. 01841_ Slug penetrates Door. 01843_ Atomic Centrifuge disabled. 01844_ Penetrated by Slug. 01846_ K-01 Serf collects debris. 01847_ Penetrated by Slug. 01850_ Slug penetrates Wall. 01853_ Hrd. Light Armor Plating destroyed. 01854_ Slug penetrates Wall. 01859_ Lgt. Treads destroyed. 01860_ Slug penetrates Wall. 01866_ Wall collapses. 01866_ Penetrated by Slug. 01868_ Lgt. Treads destroyed. 01869_ Penetrated by Slug. 01869_ Lgt. Treads destroyed. 01871_ Penetrated by Slug. 01874_ Grenade Launcher destroyed. 01874_ Atomic Centrifuge disabled. 01875_ Penetrated by Slug. Map ----- +----------------------------------------------------+ | ??????????????????????????????????????????????? | | ??????????????????????????????????????????????? | | ??????????????????????????????????????????????? | | ??????????????????????????????????????????????? | | ??????????????????????????????????????????????? | | ??????????????????????????????????????????????? | | ??????????????????????????????????????????????? | | ??????????#???????????????????????????????????? | | ??????????# ??????????????????????????????????? | | ??????????# ?????????????????????????????????? | | ??????????# ????????????????????????????????? | | ??????????# ########????????????????????????? | | ??????????#^ #????????????????????????? | | ??????????+ #????????????????????????? | | ??????????# ^"T" #????????????????????????? | | ??????????#^ #????????????????????????? | | ??????????# #????????????????????????? | | ??????????# #????????????????????????? | | ??????????# #????????????????????????? | | ??????????# """ #????????????????????????? | | ??????????# """ #????????????????????????? | | ??????????# """ ###############??????????? | | ??????????# r # #??????????? | | ??????????# # "" """ #??????????? | | ??????????# # """ "T" #??????????? | | ??????????# h @ "" #??????????? | | ??????????# ][[ h; #??????????? | | ??????????# ][[ # ! #??????????? | | ??????????# [ %###############??????????? | | ??????????# #####+####??????????????????????? | | ??????????# # [*########???????????????? | | ??????????# # / ????????? | | ??????????# # """ ########???????????????? | | ??????????##### """ #??????????????????????? | | ??????????????# #??????????????????????? | | ??????????????# """ #??????????????????????? | | ??????????????# """ #??????????????????????? | | ??????????????# """ #??????????????????????? | | ??????????????# #??????????????????????? | | ??????????????##########??????????????????????? | | ??????????????????????????????????????????????? | | ??????????????????????????????????????????????? | | ??????????????????????????????????????????????? | | ??????????????????????????????????????????????? | | ??????????????????????????????????????????????? | | ??????????????????????????????????????????????? | | ??????????????????????????????????????????????? | | ??????????????????????????????????????????????? | | ??????????????????????????????????????????????? | | ??????????????????????????????????????????????? | +----------------------------------------------------+ Best States ------------- Heat Dissipation 41 Energy Generation 12 Energy Capacity 265 Matter Stores 300 Matter Capacity 300 Sight Range 16 Terrain Scan Density 10 Armor Coverage 225 Evasion (%) 42 Target Analysis 5 Recoil Reduction 3 Item Schematics ----------------- None Robot Schematics ------------------ None Fabricated ------------ Nothing Alien Tech Used ----------------- None Achievements -------------- True Hacker Challenges ------------ None Game ------ Seed PlasmaBladeDissipator Manual? 0 Play Time 01:09:10 Cumulative 15.2 hours Start 2022.07.02 @ 13:10:42 End 2022.07.03 @ 00:04:19 Sessions 11 Manual Loads 0 Difficulty Rogue Special Mode None Game No. 14 Rogue 13 Adventurer 0 Explorer 1 Win Type - Total 0 Types 0/0/0/0/0/0/0/0/0 Lore% 13 Gallery% 13 Achievement% 12 Wizard Run 0 Options --------- ASCII 0 Keyboard 0 Movement Mouse Keybinds 0 Fullscreen 1 Font 36/Terminus Map View 76x50 Tactical HUD 1 Map Filters NONE Filters NONE Steam 1 RUN: 26552126-fbb9-4f2b-beea-d19e1cb66104